[Event "*** Titled Tuesday Blitz"]
[Site "Chess.com"]
[Date "2019.06.04"]
[Round "2"]
[White "dcremisi"]
[Black "GremioPrudente"]
[Result "1-0"]
[WhiteElo "2248"]
[BlackElo "2116"]
[TimeControl "180+2"]
[EndTime "13:26:23 PDT"]
[Termination "dcremisi won on time"]

1. d4 {[%clk 0:03:01.9]} 1... d5 {[%clk 0:03:00.2]} 2. c4 {[%clk 0:03:02.9]}
2... c6 {[%clk 0:03:00.5]} 3. Nf3 {[%clk 0:03:02.8]} 3... e6 {[%clk 0:03:01.5]}
4. Qc2 {[%clk 0:03:02.7]} 4... Nf6 {[%clk 0:02:59.5]} 5. b3 {[%clk 0:02:59.1]}
5... Nbd7 {[%clk 0:02:58.3]} 6. Nbd2 {[%clk 0:02:59.5]} 6... Bd6 {[%clk
0:02:56.7]} 7. e3 {[%clk 0:03:00.2]} 7... O-O {[%clk 0:02:57]} 8. Bd3 {[%clk
0:03:01.2]} 8... Qe7 {[%clk 0:02:57.4]} 9. O-O {[%clk 0:02:59.4]} 9... e5 {[%clk
0:02:55.6]} 10. cxd5 {[%clk 0:02:53.9]} 10... cxd5 {[%clk 0:02:50.3]} 11. dxe5
{[%clk 0:02:55.1]} 11... Nxe5 {[%clk 0:02:51.2]} 12. Bb2 {[%clk 0:02:50.6]}
12... h6 {[%clk 0:02:45.8]} 13. Nxe5 {[%clk 0:02:48.2]} 13... Bxe5 {[%clk
0:02:46.4]} 14. Bxe5 {[%clk 0:02:49.2]} 14... Qxe5 {[%clk 0:02:47]} 15. Nf3
{[%clk 0:02:50.8]} 15... Qh5 {[%clk 0:02:42]} 16. Rac1 {[%clk 0:02:49.3]} 16...
Bg4 {[%clk 0:02:35.1]} 17. Nd4 {[%clk 0:02:47.8]} 17... Rac8 {[%clk 0:02:34]}
18. Qd2 {[%clk 0:02:48.7]} 18... Rxc1 {[%clk 0:02:32.3]} 19. Rxc1 {[%clk
0:02:50.6]} 19... Be6 {[%clk 0:02:23]} 20. Qa5 {[%clk 0:02:48.1]} 20... Ng4
{[%clk 0:02:13.5]} 21. h3 {[%clk 0:02:45.2]} 21... Ne5 {[%clk 0:02:13.9]} 22.
Bf1 {[%clk 0:02:39.2]} 22... a6 {[%clk 0:02:08.7]} 23. Qc7 {[%clk 0:02:30.8]}
23... Rc8 {[%clk 0:02:00]} 24. Qxc8+ {[%clk 0:02:24.6]} 24... Bxc8 {[%clk
0:02:01.1]} 25. Rxc8+ {[%clk 0:02:26.2]} 25... Kh7 {[%clk 0:02:01.7]} 26. f4
{[%clk 0:02:21.8]} 26... Nc6 {[%clk 0:01:45.7]} 27. Bd3+ {[%clk 0:02:06.2]}
27... g6 {[%clk 0:01:42.1]} 28. Nf3 {[%clk 0:02:06.7]} 28... d4 {[%clk
0:01:29.7]} 29. Rc7 {[%clk 0:01:57.5]} 29... Kg7 {[%clk 0:01:26.4]} 30. Bc4
{[%clk 0:01:55.2]} 30... Nd8 {[%clk 0:01:15.8]} 31. Nxd4 {[%clk 0:01:53.1]}
31... Qd1+ {[%clk 0:01:15.5]} 32. Kh2 {[%clk 0:01:54.1]} 32... b5 {[%clk
0:01:09.5]} 33. Rd7 {[%clk 0:01:50.1]} 33... Qe1 {[%clk 0:00:51.7]} 34. Be2
{[%clk 0:01:27.9]} 34... Nc6 {[%clk 0:00:36.9]} 35. Nxc6 {[%clk 0:01:23.5]}
35... Qxe2 {[%clk 0:00:38.1]} 36. Ne5 {[%clk 0:01:24.7]} 36... Qxe3 {[%clk
0:00:36.6]} 37. Rxf7+ {[%clk 0:01:25.8]} 37... Kg8 {[%clk 0:00:37.2]} 38. Rf6
{[%clk 0:01:22.3]} 38... g5 {[%clk 0:00:35.2]} 39. Ng4 {[%clk 0:01:23.3]} 39...
Qd2 {[%clk 0:00:24.5]} 40. Nxh6+ {[%clk 0:00:56.6]} 40... Kg7 {[%clk 0:00:23.9]}
41. fxg5 {[%clk 0:00:57.6]} 41... Qxg5 {[%clk 0:00:21.4]} 42. Ng4 {[%clk
0:00:58.9]} 42... Qd2 {[%clk 0:00:19.1]} 43. Rf2 {[%clk 0:00:59.7]} 43... Qd6+
{[%clk 0:00:19.5]} 44. g3 {[%clk 0:01:00.2]} 44... Qd4 {[%clk 0:00:19.4]} 45.
Kg2 {[%clk 0:01:00.5]} 45... Qd5+ {[%clk 0:00:20]} 46. Rf3 {[%clk 0:01:00.5]}
46... Qd2+ {[%clk 0:00:20.7]} 47. Rf2 {[%clk 0:01:01.9]} 47... Qd5+ {[%clk
0:00:21.5]} 48. Kh2 {[%clk 0:01:03.4]} 48... Qd4 {[%clk 0:00:21.1]} 49. Re2
{[%clk 0:01:01.5]} 49... Qd3 {[%clk 0:00:18.9]} 50. Re7+ {[%clk 0:00:58.1]}
50... Kf8 {[%clk 0:00:18.5]} 51. Rf7+ {[%clk 0:00:55.4]} 51... Kg8 {[%clk
0:00:15.5]} 52. Rf2 {[%clk 0:00:53.8]} 52... Qd4 {[%clk 0:00:14.9]} 53. Rg2
{[%clk 0:00:49.9]} 53... a5 {[%clk 0:00:15.8]} 54. Nf2 {[%clk 0:00:51]} 54... a4
{[%clk 0:00:16.6]} 55. bxa4 {[%clk 0:00:51.3]} 55... bxa4 {[%clk 0:00:17.9]} 56.
h4 {[%clk 0:00:52.8]} 56... Qc4 {[%clk 0:00:18.2]} 57. Nh3 {[%clk 0:00:51.7]}
57... a3 {[%clk 0:00:19.5]} 58. g4 {[%clk 0:00:51.4]} 58... Qc7+ {[%clk
0:00:18.3]} 59. Kg1 {[%clk 0:00:52.6]} 59... Qc1+ {[%clk 0:00:19]} 60. Kf2
{[%clk 0:00:53.9]} 60... Qc2+ {[%clk 0:00:19]} 61. Kg3 {[%clk 0:00:55.3]} 61...
Qc7+ {[%clk 0:00:18.3]} 62. Nf4 {[%clk 0:00:56.6]} 62... Qc3+ {[%clk 0:00:19.6]}
63. Kh2 {[%clk 0:00:57.7]} 63... Qf3 {[%clk 0:00:20.5]} 64. Nh3 {[%clk 0:00:56]}
64... Qc3 {[%clk 0:00:19.1]} 65. g5 {[%clk 0:00:51]} 65... Qc7+ {[%clk 0:00:19]}
66. Kg1 {[%clk 0:00:51.9]} 66... Qc1+ {[%clk 0:00:19.8]} 67. Kf2 {[%clk
0:00:53.5]} 67... Qc2+ {[%clk 0:00:20.9]} 68. Kg3 {[%clk 0:00:54.5]} 68... Qc7+
{[%clk 0:00:21.6]} 69. Nf4 {[%clk 0:00:53.6]} 69... Qc3+ {[%clk 0:00:21.6]} 70.
Kg4 {[%clk 0:00:54.9]} 70... Qb2 {[%clk 0:00:21.1]} 71. h5 {[%clk 0:00:51.6]}
71... Qd4 {[%clk 0:00:20]} 72. Re2 {[%clk 0:00:44.9]} 72... Qd7+ {[%clk
0:00:19.6]} 73. Re6 {[%clk 0:00:44.9]} 73... Qd1+ {[%clk 0:00:18.6]} 74. Kf5
{[%clk 0:00:45.4]} 74... Qb1+ {[%clk 0:00:18.5]} 75. Kf6 {[%clk 0:00:44.9]}
75... Qb2+ {[%clk 0:00:19.6]} 76. Re5 {[%clk 0:00:44]} 76... Qxa2 {[%clk
0:00:18.6]} 77. Re8+ {[%clk 0:00:44]} 77... Kh7 {[%clk 0:00:17.3]} 78. g6+
{[%clk 0:00:45.5]} 1-0

[Event "*** Titled Tuesday Blitz"]
[Site "Chess.com"]
[Date "2019.06.04"]
[Round "2"]
[White "26andrej26"]
[Black "enriquetejedor"]
[Result "0-1"]
[WhiteElo "2520"]
[BlackElo "2547"]
[TimeControl "180+2"]
[EndTime "13:26:25 PDT"]
[Termination "enriquetejedor won by resignation"]

1. e4 {[%clk 0:03:01.9]} 1... c5 {[%clk 0:03:00]} 2. Nf3 {[%clk 0:03:03.3]} 2...
e6 {[%clk 0:02:58]} 3. d4 {[%clk 0:03:04.7]} 3... cxd4 {[%clk 0:02:59.9]} 4.
Nxd4 {[%clk 0:03:06.6]} 4... a6 {[%clk 0:03:01.5]} 5. Nc3 {[%clk 0:03:07.2]}
5... Qc7 {[%clk 0:03:01.1]} 6. Bd3 {[%clk 0:03:08.7]} 6... b5 {[%clk 0:03:01.5]}
7. O-O {[%clk 0:03:08]} 7... Bb7 {[%clk 0:03:02.3]} 8. Qe2 {[%clk 0:03:06]} 8...
Nc6 {[%clk 0:02:56.8]} 9. Nxc6 {[%clk 0:03:06]} 9... dxc6 {[%clk 0:02:56.1]} 10.
a4 {[%clk 0:03:05.4]} 10... Nf6 {[%clk 0:02:51.2]} 11. f4 {[%clk 0:02:59]} 11...
e5 {[%clk 0:02:50.6]} 12. Kh1 {[%clk 0:02:58.9]} 12... Bd6 {[%clk 0:02:50.2]}
13. f5 {[%clk 0:02:58.4]} 13... b4 {[%clk 0:02:47.7]} 14. Nb1 {[%clk 0:02:59.5]}
14... a5 {[%clk 0:02:41.4]} 15. Nd2 {[%clk 0:03:00.7]} 15... h5 {[%clk
0:02:37.3]} 16. Nc4 {[%clk 0:02:58.4]} 16... Be7 {[%clk 0:02:36.7]} 17. Be3
{[%clk 0:02:54.9]} 17... Nd7 {[%clk 0:02:30.3]} 18. Qf2 {[%clk 0:02:50.3]} 18...
c5 {[%clk 0:02:27.2]} 19. b3 {[%clk 0:02:48.4]} 19... Nf6 {[%clk 0:02:23.3]} 20.
Qe2 {[%clk 0:02:42.3]} 20... Nxe4 {[%clk 0:02:16.9]} 21. Bxe4 {[%clk 0:02:43.5]}
21... Bxe4 {[%clk 0:02:17.7]} 22. Bg1 {[%clk 0:02:45.2]} 22... Qb7 {[%clk
0:02:05.9]} 23. Rae1 {[%clk 0:02:38.4]} 23... Bd5 {[%clk 0:02:04.4]} 24. Nxe5
{[%clk 0:02:39.1]} 24... O-O {[%clk 0:02:02.7]} 25. Nd3 {[%clk 0:02:10.8]} 25...
Rae8 {[%clk 0:01:50.6]} 26. Nf4 {[%clk 0:01:51]} 26... Bg5 {[%clk 0:01:31.3]}
27. Qxe8 {[%clk 0:01:51.7]} 27... Rxe8 {[%clk 0:01:26.9]} 28. Rxe8+ {[%clk
0:01:52.5]} 28... Kh7 {[%clk 0:01:28.8]} 29. Nxd5 {[%clk 0:01:52.3]} 29... Qxd5
{[%clk 0:01:30.7]} 30. Ree1 {[%clk 0:01:33.7]} 30... Qd2 {[%clk 0:01:27.5]} 31.
Rc1 {[%clk 0:01:24.3]} 31... Qc3 {[%clk 0:01:27.3]} 32. Rcd1 {[%clk 0:01:17.2]}
32... Qxc2 {[%clk 0:01:25.2]} 33. h4 {[%clk 0:01:02.2]} 33... Bxh4 {[%clk
0:01:21.8]} 34. f6 {[%clk 0:01:03.6]} 34... Bxf6 {[%clk 0:01:19.2]} 35. Rd5
{[%clk 0:01:03.3]} 35... Qxb3 {[%clk 0:01:18.4]} 36. Rxh5+ {[%clk 0:01:03.4]}
36... Kg6 {[%clk 0:01:19.7]} 37. Rxc5 {[%clk 0:01:02.7]} 37... Qxa4 {[%clk
0:01:20.7]} 38. Rff5 {[%clk 0:01:00.8]} 38... Qd7 {[%clk 0:01:14.5]} 39. Rfd5
{[%clk 0:00:57.7]} 39... Qg4 {[%clk 0:01:11.9]} 40. Rxa5 {[%clk 0:00:52.1]}
40... b3 {[%clk 0:01:06.2]} 41. Rab5 {[%clk 0:00:52.5]} 41... b2 {[%clk
0:01:05.5]} 42. Rd3 {[%clk 0:00:43.6]} 42... Qh4+ {[%clk 0:00:40.4]} 43. Rh3
{[%clk 0:00:41.3]} 43... Qe4 {[%clk 0:00:37.7]} 44. Rhb3 {[%clk 0:00:39.1]}
44... Qe1 {[%clk 0:00:28.2]} 45. Rxb2 {[%clk 0:00:36.1]} 45... Qh4+ {[%clk
0:00:26.2]} 46. Bh2 {[%clk 0:00:36.3]} 46... Qe1+ {[%clk 0:00:23.9]} 47. Bg1
{[%clk 0:00:36.6]} 47... Bxb2 {[%clk 0:00:17]} 48. Rxb2 {[%clk 0:00:37.5]} 48...
Qh4+ {[%clk 0:00:17.7]} 49. Bh2 {[%clk 0:00:38.4]} 49... f6 {[%clk 0:00:19.6]}
50. Rb1 {[%clk 0:00:37.6]} 50... Qe4 {[%clk 0:00:20.4]} 51. Rf1 {[%clk
0:00:37.6]} 51... Kh5 {[%clk 0:00:21.1]} 52. Kg1 {[%clk 0:00:37.6]} 52... Qd4+
{[%clk 0:00:20.4]} 53. Kh1 {[%clk 0:00:38.8]} 53... g5 {[%clk 0:00:22.3]} 54.
Bg3 {[%clk 0:00:38.3]} 54... Kg6 {[%clk 0:00:22.8]} 55. Bf2 {[%clk 0:00:37.4]}
55... Qd8 {[%clk 0:00:22.3]} 56. Kg1 {[%clk 0:00:34.8]} 56... f5 {[%clk
0:00:22.3]} 57. Re1 {[%clk 0:00:34]} 57... Qd6 {[%clk 0:00:22.6]} 58. Rb1 {[%clk
0:00:32.3]} 58... Qd3 {[%clk 0:00:22.4]} 59. Re1 {[%clk 0:00:32.9]} 59... f4
{[%clk 0:00:22.7]} 60. Ra1 {[%clk 0:00:30.4]} 60... g4 {[%clk 0:00:21.5]} 61.
Rf1 {[%clk 0:00:17]} 61... Qd2 {[%clk 0:00:19.2]} 62. Bh4 {[%clk 0:00:13.4]}
62... g3 {[%clk 0:00:11.2]} 63. Kh1 {[%clk 0:00:08.8]} 63... Qd4 {[%clk
0:00:09.9]} 64. Bxg3 {[%clk 0:00:06.7]} 64... fxg3 {[%clk 0:00:09.6]} 65. Re1
{[%clk 0:00:05]} 65... Qh8+ {[%clk 0:00:08.7]} 66. Kg1 {[%clk 0:00:06]} 66...
Qh2+ {[%clk 0:00:10.4]} 67. Kf1 {[%clk 0:00:07.4]} 67... Qh1+ {[%clk 0:00:12.3]}
68. Ke2 {[%clk 0:00:08.9]} 68... Qxg2+ {[%clk 0:00:14.2]} 69. Kd3 {[%clk
0:00:10.3]} 69... Qf3+ {[%clk 0:00:15.2]} 70. Re3 {[%clk 0:00:11.6]} 70... Qd1+
{[%clk 0:00:16.2]} 71. Ke4 {[%clk 0:00:12.6]} 71... Qh1+ {[%clk 0:00:08.5]} 72.
Kf4 {[%clk 0:00:13.1]} 72... g2 {[%clk 0:00:09.5]} 73. Rg3+ {[%clk 0:00:14.4]}
73... Kf6 {[%clk 0:00:11.1]} 0-1

[Event "*** Titled Tuesday Blitz"]
[Site "Chess.com"]
[Date "2019.06.04"]
[Round "2"]
[White "Anaiy"]
[Black "ZaphenathPaneah"]
[Result "1-0"]
[WhiteElo "1996"]
[BlackElo "1694"]
[TimeControl "180+2"]
[EndTime "13:26:25 PDT"]
[Termination "Anaiy won by resignation"]

1. d4 {[%clk 0:02:59.7]} 1... Nf6 {[%clk 0:03:00.7]} 2. c4 {[%clk 0:03:00.7]}
2... e6 {[%clk 0:03:02]} 3. Nc3 {[%clk 0:03:02]} 3... Bb4 {[%clk 0:03:03.3]} 4.
e3 {[%clk 0:03:02.8]} 4... O-O {[%clk 0:03:03.1]} 5. Bd3 {[%clk 0:03:03.4]} 5...
d5 {[%clk 0:03:00.7]} 6. Ne2 {[%clk 0:03:03.8]} 6... b6 {[%clk 0:02:58]} 7. a3
{[%clk 0:03:04.6]} 7... Be7 {[%clk 0:02:58.5]} 8. O-O {[%clk 0:03:05]} 8... Bb7
{[%clk 0:02:59.6]} 9. cxd5 {[%clk 0:02:58.2]} 9... exd5 {[%clk 0:02:56.5]} 10.
Nf4 {[%clk 0:02:55.1]} 10... Nbd7 {[%clk 0:02:56.8]} 11. Qc2 {[%clk 0:02:52.2]}
11... c5 {[%clk 0:02:56.1]} 12. dxc5 {[%clk 0:02:51.5]} 12... bxc5 {[%clk
0:02:54.1]} 13. Be2 {[%clk 0:02:40.2]} 13... d4 {[%clk 0:02:51.4]} 14. exd4
{[%clk 0:02:33.6]} 14... cxd4 {[%clk 0:02:53.3]} 15. Nb5 {[%clk 0:02:32]} 15...
Qb6 {[%clk 0:02:49.1]} 16. Bd3 {[%clk 0:02:25.3]} 16... Rac8 {[%clk 0:02:48.5]}
17. Qa4 {[%clk 0:02:13.5]} 17... Nc5 {[%clk 0:02:35.9]} 18. Qxa7 {[%clk
0:02:04.1]} 18... Qc6 {[%clk 0:02:32.5]} 19. Nxd4 {[%clk 0:01:45.3]} 19... Qd7
{[%clk 0:02:07.3]} 20. Bf5 {[%clk 0:01:31.9]} 20... Qxd4 {[%clk 0:02:08.2]} 21.
Bxc8 {[%clk 0:01:33]} 21... Rxc8 {[%clk 0:02:10]} 22. Be3 {[%clk 0:01:30.2]}
22... Qe4 {[%clk 0:02:05.1]} 23. b4 {[%clk 0:01:11.2]} 23... g5 {[%clk
0:01:28.9]} 24. Bxc5 {[%clk 0:00:57.2]} 24... gxf4 {[%clk 0:01:27.7]} 25. f3
{[%clk 0:00:49]} 25... Bxc5+ {[%clk 0:01:28.2]} 26. Qxc5 {[%clk 0:00:38.4]}
26... Qe3+ {[%clk 0:00:52.9]} 27. Qxe3 {[%clk 0:00:37.8]} 27... fxe3 {[%clk
0:00:54.8]} 28. Rfe1 {[%clk 0:00:35.6]} 28... Rc3 {[%clk 0:00:51.9]} 29. a4
{[%clk 0:00:26]} 29... Nd5 {[%clk 0:00:52.7]} 30. b5 {[%clk 0:00:21.4]} 30...
Nb4 {[%clk 0:00:53.8]} 31. Rad1 {[%clk 0:00:18]} 31... Ra3 {[%clk 0:00:28.7]}
32. Rd8+ {[%clk 0:00:18]} 32... Kg7 {[%clk 0:00:29.5]} 33. Rd7 {[%clk
0:00:14.4]} 33... Nc2 {[%clk 0:00:27.2]} 34. Rc1 {[%clk 0:00:05.4]} 34... e2
{[%clk 0:00:14.6]} 35. Rxb7 {[%clk 0:00:06.8]} 35... Re3 {[%clk 0:00:12.8]} 36.
Kf2 {[%clk 0:00:06.8]} 36... e1=Q+ {[%clk 0:00:13.7]} 37. Rxe1 {[%clk
0:00:08.2]} 37... Rxe1 {[%clk 0:00:15.3]} 38. a5 {[%clk 0:00:09.4]} 38... Ra1
{[%clk 0:00:15.8]} 39. a6 {[%clk 0:00:10.5]} 39... Nb4 {[%clk 0:00:15.3]} 40. a7
{[%clk 0:00:11.1]} 40... Nd5 {[%clk 0:00:15.2]} 41. b6 {[%clk 0:00:10.4]} 41...
Ra2+ {[%clk 0:00:16.7]} 42. Kg3 {[%clk 0:00:11]} 42... Nxb6 {[%clk 0:00:15.6]}
43. Rxb6 {[%clk 0:00:11.9]} 43... Rxa7 {[%clk 0:00:17.5]} 44. Kg4 {[%clk
0:00:12.7]} 44... Ra4+ {[%clk 0:00:17.8]} 45. f4 {[%clk 0:00:14]} 45... Ra2
{[%clk 0:00:18.3]} 46. Kh3 {[%clk 0:00:14]} 46... f6 {[%clk 0:00:17.7]} 47. g3
{[%clk 0:00:14.3]} 47... Kg6 {[%clk 0:00:18.7]} 48. Rb5 {[%clk 0:00:13.3]} 48...
h5 {[%clk 0:00:19.4]} 49. Rc5 {[%clk 0:00:10.4]} 49... Rd2 {[%clk 0:00:20.2]}
50. Rb5 {[%clk 0:00:11.3]} 50... Rc2 {[%clk 0:00:20.6]} 51. Ra5 {[%clk
0:00:11.3]} 51... Rd2 {[%clk 0:00:21.6]} 52. Ra8 {[%clk 0:00:12.5]} 52... Rc2
{[%clk 0:00:20.9]} 53. Rg8+ {[%clk 0:00:13.7]} 53... Kh6 {[%clk 0:00:22]} 54. f5
{[%clk 0:00:12.5]} 54... Rf2 {[%clk 0:00:22.1]} 55. Rg6+ {[%clk 0:00:13.1]}
55... Kh7 {[%clk 0:00:23.4]} 56. Rxf6 {[%clk 0:00:14.7]} 56... Kg7 {[%clk
0:00:24.4]} 57. Rg6+ {[%clk 0:00:15.9]} 57... Kh7 {[%clk 0:00:26]} 58. Rg5
{[%clk 0:00:15.2]} 58... Kh6 {[%clk 0:00:26.6]} 59. Rg8 {[%clk 0:00:13.3]} 59...
Rxf5 {[%clk 0:00:27]} 60. Rh8+ {[%clk 0:00:14.5]} 60... Kg6 {[%clk 0:00:27.8]}
61. Kg2 {[%clk 0:00:12.1]} 61... Ra5 {[%clk 0:00:28.4]} 62. Rb8 {[%clk
0:00:11.9]} 62... Kg5 {[%clk 0:00:27.6]} 63. h4+ {[%clk 0:00:11.5]} 63... Kg6
{[%clk 0:00:28.7]} 64. Kf3 {[%clk 0:00:11.5]} 64... Ra3+ {[%clk 0:00:29.1]} 65.
Kf4 {[%clk 0:00:12]} 65... Ra4+ {[%clk 0:00:29.9]} 66. Kf3 {[%clk 0:00:13.5]}
66... Ra3+ {[%clk 0:00:31.1]} 67. Kg2 {[%clk 0:00:15.1]} 67... Ra2+ {[%clk
0:00:32.4]} 68. Kh3 {[%clk 0:00:16.7]} 68... Ra3 {[%clk 0:00:33.8]} 69. Rb6+
{[%clk 0:00:17.5]} 69... Kg7 {[%clk 0:00:34.5]} 70. Rb5 {[%clk 0:00:18.6]} 70...
Kg6 {[%clk 0:00:35.6]} 71. Rg5+ {[%clk 0:00:19.3]} 71... Kh6 {[%clk 0:00:37.1]}
72. Kg2 {[%clk 0:00:19.2]} 72... Rb3 {[%clk 0:00:37.4]} 73. Re5 {[%clk
0:00:15.5]} 73... Kg6 {[%clk 0:00:37.4]} 74. Kh3 {[%clk 0:00:15.6]} 74... Ra3
{[%clk 0:00:37.8]} 75. Kg2 {[%clk 0:00:16.6]} 75... Rb3 {[%clk 0:00:38.1]} 76.
Kf2 {[%clk 0:00:17.9]} 76... Ra3 {[%clk 0:00:38.6]} 77. Re3 {[%clk 0:00:19.2]}
77... Rxe3 {[%clk 0:00:26.6]} 78. Kxe3 {[%clk 0:00:21.1]} 78... Kf5 {[%clk
0:00:27.5]} 79. Kf3 {[%clk 0:00:22.1]} 79... Kg6 {[%clk 0:00:27.9]} 80. Ke4
{[%clk 0:00:22.2]} 80... Kf6 {[%clk 0:00:29]} 81. Kf4 {[%clk 0:00:23.3]} 81...
Kg6 {[%clk 0:00:28.3]} 82. Ke5 {[%clk 0:00:24.6]} 82... Kg7 {[%clk 0:00:26]} 83.
Kf5 {[%clk 0:00:24.4]} 83... Kh6 {[%clk 0:00:27]} 84. Kf6 {[%clk 0:00:25.7]} 1-0

[Event "*** Titled Tuesday Blitz"]
[Site "Chess.com"]
[Date "2019.06.04"]
[Round "2"]
[White "BilodeauA"]
[Black "Koksik_13"]
[Result "0-1"]
[WhiteElo "2926"]
[BlackElo "2643"]
[TimeControl "180+2"]
[EndTime "13:26:29 PDT"]
[Termination "Koksik_13 won by resignation"]

1. e4 {[%clk 0:03:01.9]} 1... e6 {[%clk 0:03:00]} 2. d4 {[%clk 0:03:01.4]} 2...
d5 {[%clk 0:03:01.2]} 3. e5 {[%clk 0:02:55.4]} 3... c5 {[%clk 0:03:02.2]} 4. c3
{[%clk 0:02:56.5]} 4... Qb6 {[%clk 0:03:03.3]} 5. Nf3 {[%clk 0:02:56.7]} 5...
Nc6 {[%clk 0:03:04.2]} 6. a3 {[%clk 0:02:58.1]} 6... Nh6 {[%clk 0:03:04.2]} 7.
Bd3 {[%clk 0:02:58.6]} 7... cxd4 {[%clk 0:03:04.4]} 8. O-O {[%clk 0:02:59.3]}
8... Bd7 {[%clk 0:03:04.1]} 9. b4 {[%clk 0:03:00]} 9... dxc3 {[%clk 0:03:01.6]}
10. Nxc3 {[%clk 0:03:00.9]} 10... Rc8 {[%clk 0:02:58.7]} 11. Bb2 {[%clk
0:02:53.2]} 11... Nd4 {[%clk 0:02:54.8]} 12. Rc1 {[%clk 0:02:44.9]} 12... Nxf3+
{[%clk 0:02:55.2]} 13. Qxf3 {[%clk 0:02:45.5]} 13... Be7 {[%clk 0:02:43.5]} 14.
Ne2 {[%clk 0:02:03.6]} 14... O-O {[%clk 0:02:41.2]} 15. Bd4 {[%clk 0:02:03.5]}
15... Qd8 {[%clk 0:02:39.8]} 16. Ng3 {[%clk 0:01:43.6]} 16... f5 {[%clk
0:02:28.2]} 17. exf6 {[%clk 0:01:00.4]} 17... Bxf6 {[%clk 0:02:28.6]} 18. Bxf6
{[%clk 0:01:01.5]} 18... Qxf6 {[%clk 0:02:26.7]} 19. Qe3 {[%clk 0:01:01.4]}
19... Ng4 {[%clk 0:02:21.9]} 20. Qd2 {[%clk 0:00:50.5]} 20... Rxc1 {[%clk
0:02:22.3]} 21. Qxc1 {[%clk 0:00:51.5]} 21... Qd4 {[%clk 0:02:09.8]} 22. Qc2
{[%clk 0:00:52.2]} 22... Kh8 {[%clk 0:02:00.5]} 23. h3 {[%clk 0:00:49.4]} 23...
Nf6 {[%clk 0:01:58.9]} 24. Rd1 {[%clk 0:00:41.7]} 24... Qf4 {[%clk 0:01:56.7]}
25. Qe2 {[%clk 0:00:40.8]} 25... e5 {[%clk 0:01:52.7]} 26. Bb1 {[%clk
0:00:38.8]} 26... e4 {[%clk 0:01:52.6]} 27. Nf1 {[%clk 0:00:32.6]} 27... Qg5
{[%clk 0:01:51.6]} 28. Qe3 {[%clk 0:00:30.9]} 28... Qg6 {[%clk 0:01:47.3]} 29.
Ba2 {[%clk 0:00:30.1]} 29... Be6 {[%clk 0:01:44.8]} 30. Rd4 {[%clk 0:00:29.6]}
30... h6 {[%clk 0:01:37.9]} 31. Bb3 {[%clk 0:00:30.7]} 31... Nh5 {[%clk
0:01:38.4]} 32. Bd1 {[%clk 0:00:28.4]} 32... Nf4 {[%clk 0:01:38.5]} 33. Ng3
{[%clk 0:00:27.8]} 33... Qg5 {[%clk 0:01:25]} 34. Rd2 {[%clk 0:00:27.4]} 34...
Rc8 {[%clk 0:00:55.2]} 35. Rc2 {[%clk 0:00:21.6]} 35... Rxc2 {[%clk 0:00:50.7]}
36. Bxc2 {[%clk 0:00:23.5]} 36... h5 {[%clk 0:00:51.8]} 37. h4 {[%clk
0:00:13.6]} 37... Qxh4 {[%clk 0:00:49.8]} 38. Qxa7 {[%clk 0:00:14.6]} 38... Qg5
{[%clk 0:00:44.2]} 39. Qe3 {[%clk 0:00:05.5]} 39... h4 {[%clk 0:00:43.7]} 40.
Kf1 {[%clk 0:00:06.9]} 40... hxg3 {[%clk 0:00:40]} 41. fxg3 {[%clk 0:00:08.3]}
41... Nh3 {[%clk 0:00:40.5]} 42. Ke2 {[%clk 0:00:05.4]} 42... Qxe3+ {[%clk
0:00:26.2]} 43. Kxe3 {[%clk 0:00:07.3]} 43... Ng5 {[%clk 0:00:27.5]} 44. Kd4
{[%clk 0:00:08.8]} 44... Kg8 {[%clk 0:00:23.1]} 45. b5 {[%clk 0:00:09.7]} 45...
Kf7 {[%clk 0:00:24]} 46. a4 {[%clk 0:00:11.2]} 46... b6 {[%clk 0:00:23.6]} 47.
a5 {[%clk 0:00:08.1]} 47... bxa5 {[%clk 0:00:24.7]} 48. b6 {[%clk 0:00:09.5]}
48... Bc8 {[%clk 0:00:26.1]} 49. Bb3 {[%clk 0:00:09.3]} 49... Bb7 {[%clk
0:00:11.8]} 50. Bxd5+ {[%clk 0:00:04.7]} 50... Bxd5 {[%clk 0:00:12.8]} 51. Kxd5
{[%clk 0:00:06]} 51... e3 {[%clk 0:00:14.2]} 52. b7 {[%clk 0:00:07.1]} 52... e2
{[%clk 0:00:15.6]} 53. b8=Q {[%clk 0:00:08.3]} 53... e1=Q {[%clk 0:00:16.7]} 54.
Qa7+ {[%clk 0:00:04.5]} 54... Qe7 {[%clk 0:00:15.3]} 55. Qxa5 {[%clk 0:00:04.1]}
55... Qe4+ {[%clk 0:00:07.8]} 56. Kd6 {[%clk 0:00:05.4]} 56... Qe6+ {[%clk
0:00:08.9]} 57. Kc7 {[%clk 0:00:06.3]} 57... Ne4 {[%clk 0:00:10.3]} 58. Qh5+
{[%clk 0:00:06.6]} 58... Kg8 {[%clk 0:00:08.8]} 59. Qb5 {[%clk 0:00:04]} 59...
Nf6 {[%clk 0:00:09.1]} 60. Qb8+ {[%clk 0:00:03.8]} 60... Qe8 {[%clk 0:00:09.8]}
61. Qb3+ {[%clk 0:00:04.5]} 61... Qf7+ {[%clk 0:00:10.6]} 62. Qxf7+ {[%clk
0:00:06.2]} 62... Kxf7 {[%clk 0:00:11.9]} 63. Kd6 {[%clk 0:00:08.1]} 63... Kg6
{[%clk 0:00:13.3]} 64. Ke6 {[%clk 0:00:09.4]} 64... Ne4 {[%clk 0:00:13.7]} 65.
g4 {[%clk 0:00:10.5]} 65... Nf2 {[%clk 0:00:14.8]} 66. g5 {[%clk 0:00:10.9]}
66... Ne4 {[%clk 0:00:15.7]} 0-1